bitfinex-derivatives/quotes_SOLF0:USTF0_20260210
["timestamp","ask_amount","ask_price","bid_price","bid_amount"]
[1770760790477,3.76923914,82.46,82.427,4.08625282]
[1770760790681,15.07462633,82.467,82.427,4.08625282]
[1770760791176,4.15512633,82.466,82.427,4.08625282]
[1770760792384,4.15512633,82.466,82.43,4.08625282]
[1770760793578,10.9195,82.467,82.43,4.08625282]
[1770760793778,4.15512633,82.476,82.43,4.08625282]
[1770760793779,4.15512633,82.476,82.437,4.08625282]
[1770760794386,4.15512633,82.476,82.441,10.9228]
[1770760794584,4.15512633,82.476,82.441,15.00905282]
[1770760794784,4.15512633,82.476,82.442,4.08625282]
[1770760795483,15.07192633,82.487,82.446,4.08625282]
[1770760795691,3.76923914,82.49,82.446,4.08625282]
[1770760795890,4.15512633,82.497,82.446,4.08625282]
[1770760796585,3.76923914,82.48,82.446,4.08625282]
[1770760796789,45.22475109,82.507,82.443,10.9225]
[1770760796790,3.76923914,82.47,82.443,10.9225]
[1770760797083,3.76923914,82.46,82.416,4.08625282]
[1770760797289,3.76923914,82.45,82.416,4.08625282]
[1770760797489,4.15512633,82.449,82.416,4.08625282]
[1770760799185,3.76923914,82.46,82.416,4.08625282]
[1770760800185,4.15512633,82.486,82.44,4.08625282]
[1770760800490,3.76923914,82.48,82.44,4.08625282]
[1770760800689,4.15512633,82.486,82.44,4.08625282]
[1770760801892,4.15512633,82.486,82.449,10.9217]
[1770760802085,3.76923914,82.48,82.449,10.9217]
[1770760802289,3.76923914,82.52,82.468,4.08625282]
[1770760802496,4.15512633,82.525,82.481,4.08625282]
[1770760802695,14.85671753,82.556,82.481,4.08625282]
[1770760802696,4.15512633,82.538,82.481,4.08625282]
[1770760802889,3.76923914,82.54,82.491,4.08625282]
[1770760803088,7.92436547,82.54,82.491,4.08625282]
[1770760803289,3.76923914,82.53,82.491,4.08625282]
[1770760803489,3.76923914,82.53,82.48,4.08625282]
[1770760803490,4.15512633,82.529,82.48,4.08625282]
[1770760804699,4.15512633,82.529,82.484,4.08625282]
[1770760804998,3.76923914,82.52,82.484,4.08625282]
[1770760805695,3.76923914,82.51,82.472,4.08625282]
[1770760806297,4.15512633,82.509,82.465,10.9196]
[1770760807296,4.15512633,82.509,82.465,15.00585282]
[1770760807496,4.15512633,82.522,82.47,3.76923914]
[1770760807803,3.76923914,82.51,82.471,4.08625282]
[1770760809707,3.76923914,82.51,82.475,4.08625282]
[1770760809901,3.76923914,82.51,82.46,3.76923914]
[1770760809902,4.15512633,82.562,82.501,4.08625282]
[1770760810106,4.15512633,82.559,82.51,3.76923914]
[1770760810294,3.76923914,82.55,82.501,4.08625282]
[1770760810500,4.15512633,82.559,82.501,4.08625282]
[1770760810800,4.15512633,82.559,82.511,4.08625282]
[1770760811302,4.15512633,82.559,82.512,14.99955282]
[1770760811506,4.15512633,82.559,82.513,4.08625282]
[1770760812807,9.32125524,82.56,82.519,4.08625282]
[1770760813904,13.47638157,82.56,82.519,4.08625282]
[1770760815607,3.76923914,82.55,82.508,10.9139]
[1770760815810,3.76923914,82.55,82.508,15.00015282]
[1770760816111,3.76923914,82.55,82.509,4.08625282]
[1770760817211,4.15512633,82.559,82.511,4.08625282]
[1770760817907,4.15512633,82.559,82.513,4.08625282]
[1770760818210,5.5520161,82.56,82.521,4.08625282]
[1770760819407,5.5520161,82.56,82.52,3.76923914]
[1770760819408,5.5520161,82.56,82.526,4.08625282]
[1770760820615,5.5520161,82.56,82.528,3.91500914]
[1770760821915,5.5520161,82.56,82.532,3.91500914]
[1770760822410,1.61e-05,82.56,82.532,3.91500914]
[1770760823711,1.61e-05,82.56,82.534,4.15827231]
[1770760824206,3.79565521,82.599,82.539,4.15827231]
[1770760824417,3.76923914,82.58,82.553,10.908]
[1770760824609,3.76923914,82.59,82.553,10.908]
[1770760825016,3.75663203,82.59,82.553,10.908]
[1770760828221,3.75663203,82.59,82.553,15.06627231]
[1770760829315,7.55228724,82.6,82.56,4.15827231]
[1770760829520,3.75663203,82.59,82.56,4.15827231]
[1770760830722,3.79565521,82.599,82.56,4.15827231]
[1770760830925,3.75663203,82.59,82.56,4.15827231]
[1770760832020,3.75663203,82.59,82.561,10.9069]
[1770760833829,96.72,82.638,82.544,4.15827231]
[1770760833830,3.75663203,82.58,82.544,4.15827231]
[1770760834422,3.79565521,82.589,82.544,4.15827231]
[1770760835822,3.79565521,82.589,82.552,10.908]
[1770760836021,3.79565521,82.589,82.553,4.15827231]
[1770760836323,3.75663203,82.6,82.555,4.15827231]
[1770760836519,3.79565521,82.599,82.555,4.15827231]
[1770760836725,3.75663203,82.6,82.555,4.15827231]
[1770760837024,7.55228724,82.6,82.555,4.15827231]
[1770760837226,3.79565521,82.589,82.541,4.15827231]
[1770760838817,3.79565521,82.589,82.549,4.15827231]
[1770760840529,36.37,82.638,82.524,21.8237]
[1770760840530,3.75663203,82.6,82.554,4.15827231]
[1770760841730,3.75663203,82.6,82.561,4.15827231]
[1770760842027,3.75663203,82.61,82.561,4.15827231]
[1770760842825,3.75663203,82.61,82.569,15.06417231]
[1770760843233,7.55228724,82.61,82.569,15.06417231]
[1770760843527,3.79565521,82.609,82.569,15.06417231]
[1770760844129,3.79565521,82.599,82.558,10.9073]
[1770760844631,3.79565521,82.599,82.559,4.15827231]
[1770760845734,10.9021,82.598,82.559,4.15827231]
[1770760847935,3.79565521,82.599,82.561,4.15827231]
[1770760848935,7.55228724,82.6,82.569,10.9058]
[1770760849927,3.79565521,82.589,82.541,4.15827231]
[1770760850833,3.79565521,82.589,82.555,10.9077]
[1770760852536,3.79565521,82.589,82.548,10.9086]
[1770760853537,3.79565521,82.589,82.548,14.81887253]
[1770760853938,3.79565521,82.589,82.55,10.9083]
[1770760854536,3.79565521,82.589,82.551,3.91027253]
[1770760855133,3.75663203,82.6,82.561,3.91027253]
[1770760855331,3.75134934,82.629,82.561,3.91027253]
[1770760855643,3.75134934,82.619,82.571,3.91027253]
[1770760855837,3.75663203,82.61,82.571,3.91027253]
[1770760857733,3.75663203,82.61,82.572,10.9055]
[1770760860642,3.75663203,82.61,82.572,14.81577253]
[1770760860842,10.9004,82.611,82.573,3.91027253]
[1770760861042,3.75663203,82.61,82.579,14.81477253]
[1770760861242,3.75134934,82.619,82.579,14.81477253]
[1770760862536,3.75134934,82.616,82.579,14.81477253]
[1770760863243,3.75663203,82.61,82.579,14.81477253]
[1770760863440,3.75663203,82.61,82.579,3.91027253]
[1770760863744,7.50798137,82.61,82.573,10.9054]
[1770760864438,7.50798137,82.61,82.578,10.9046]
[1770760865038,3.75134934,82.589,82.507,3.91027253]
[1770760865340,3.75663203,82.56,82.518,10.87370477]
[1770760865738,3.75663203,82.59,82.518,10.87370477]
[1770760865739,3.75663203,82.57,82.518,10.87370477]
[1770760866747,3.75663203,82.57,82.522,10.87201756]
[1770760867244,3.75880083,82.57,82.522,10.87201756]
[1770760867635,3.75880083,82.57,82.523,10.9119]
[1770760867837,3.75880083,82.57,82.524,10.91757157]
[1770760868946,3.75880083,82.56,82.524,10.91757157]
[1770760872152,10.9065,82.565,82.524,10.91757157]
[1770760872353,3.75880083,82.56,82.524,10.91757157]
[1770760881650,10.9065,82.565,82.524,10.91757157]
[1770760881952,3.75880083,82.57,82.53,10.92748727]
[1770760883063,8.80488478,82.599,81.991,209.95618295]
[1770760883064,3.75880083,82.54,82.517,10.92723109]
[1770760883247,36.37,82.598,82.474,21.8368]
[1770760883248,8.3e-07,82.53,82.491,10.92723109]
[1770760883449,3.75880083,82.54,82.491,10.92723109]
[1770760883956,3.75880083,82.54,82.511,10.9135]
[1770760884850,3.76097023,82.54,82.511,10.9135]
[1770760885848,3.76097023,82.53,82.494,21.8723566]
[1770760886050,3.76097023,82.53,82.494,10.9566566]
[1770760886451,3.76097023,82.53,82.5,10.915]
[1770760890054,11.24167181,82.568,82.478,96.68]
[1770760890055,3.76097023,82.54,82.503,10.94723]
[1770760890460,3.76097023,82.55,82.503,10.94723]
[1770760891861,3.76097023,82.55,82.513,10.94488532]
[1770760892862,3.76097023,82.55,82.515,10.94488532]
[1770760893459,3.76097023,82.56,82.515,10.94488532]
[1770760893663,15.01701883,82.597,82.515,10.94488532]
[1770760893664,3.76097023,82.57,82.515,10.94488532]
[1770760894658,3.76097023,82.56,82.524,10.94416153]
[1770760894868,3.76097023,82.55,82.524,10.94416153]
[1770760897069,3.76097023,82.56,82.524,10.94416153]
[1770760899978,3.76097023,82.57,82.531,10.96989529]
[1770760900172,3.76097023,82.58,82.531,10.96989529]
[1770760901772,3.76097023,82.58,82.541,10.95922555]
[1770760902572,3.76097023,82.58,82.542,10.9094]
[1770760902878,10.904,82.584,82.541,10.95922555]
[1770760903772,10.904,82.584,82.549,10.9567758]
[1770760904970,10.904,82.584,82.489,96.7]
[1770760904971,10.9019,82.6,82.558,10.9567758]
[1770760905771,10.9011,82.606,82.562,10.95761926]
[1770760905968,3.76097023,82.6,82.562,10.95761926]
[1770760906374,3.76097023,82.6,82.563,10.9066]
[1770760906569,10.9011,82.606,82.564,10.95761926]
[1770760907677,10.9011,82.606,82.565,10.9064]
[1770760907881,10.9011,82.606,82.566,10.93670221]
[1770760909277,9.42967035,82.605,82.566,10.93670221]
[1770760909980,9.42967035,82.604,82.566,10.93670221]
[1770760910179,3.76097023,82.6,82.555,10.9077]
[1770760910381,3.76097023,82.59,82.555,10.9077]
[1770760910983,10.9036,82.587,82.545,10.9091]
[1770760913484,124.56,82.611,82.511,96.68]
[1770760913485,3.76097023,82.57,82.512,10.94504624]
[1770760913679,3.76097023,82.57,82.521,10.94016686]
[1770760914785,3.76097023,82.57,82.531,21.85096686]
[1770760917090,3.76097023,82.57,82.532,10.94314432]
[1770760926788,3.76097023,82.56,82.532,10.94314432]
[1770760927887,36.37,82.596,82.487,21.8335]
[1770760927888,3.76097023,82.55,82.521,10.93881973]
[1770760928695,14.66957023,82.55,82.521,10.93881973]
[1770760929691,3.76097023,82.58,82.521,10.93881973]
[1770760929896,3.76097023,82.58,82.531,9.07185123]
[1770760930292,3.76097023,82.58,82.543,9.07185123]
[1770760940005,3.76097023,82.58,82.545,9.03526002]
[1770760942803,10.9044,82.581,82.545,9.03526002]
[1770760945105,10.9035,82.587,82.547,9.03844887]
[1770760945305,3.757079,82.6,82.547,9.03844887]
[1770760945607,9.42967035,82.599,82.547,9.03844887]
[1770760945803,3.757079,82.59,82.547,9.03844887]
[1770760946696,3.757079,82.58,82.547,9.03844887]
[1770760947311,14.661679,82.58,82.547,9.03844887]
[1770760947510,3.757079,82.58,82.547,9.03844887]
[1770760948103,3.757079,82.59,82.547,9.03844887]
[1770760948706,10.9035,82.587,82.55,9.16716442]
[1770760950213,3.757079,82.58,82.55,9.16716442]
[1770760953518,3.757079,82.59,82.556,9.12947828]
[1770760954915,3.757079,82.59,82.561,9.12647669]
[1770760955319,10.9033,82.589,82.561,9.12647669]
[1770760956316,3.757079,82.58,82.561,9.12647669]
[1770760957112,10.9033,82.589,82.561,9.12647669]
[1770760958014,3.757079,82.58,82.551,9.1279001]
[1770760959317,10.904,82.584,82.551,9.1279001]
[1770760959621,9.42967035,82.592,82.551,9.1279001]
[1770760959816,9.42967035,82.593,82.551,9.1279001]
[1770760960118,9.42967035,82.592,82.551,9.1279001]
[1770760960315,10.9026,82.594,82.551,9.1279001]
[1770760960917,10.9026,82.594,82.557,9.12606565]
[1770760962317,3.757079,82.59,82.557,9.12606565]
[1770760964321,3.757079,82.6,82.566,9.13132854]
[1770760967226,3.757079,82.6,82.567,10.9062]
[1770760967724,3.757079,82.6,82.567,18.15240112]
[1770760969722,3.757079,82.59,82.557,7.24667537]
[1770760972623,3.757079,82.57,82.545,7.24644605]
[1770760973626,3.757079,82.58,82.545,7.24644605]
[1770760975730,3.7576997,82.58,82.545,7.24644605]
[1770760976643,3.7576997,82.56,82.524,7.25731311]
[1770760976927,3.7576997,82.55,82.524,7.25731311]
[1770760978929,3.7576997,82.56,82.524,7.25731311]
[1770760980232,9.0489624,82.578,82.533,7.21744219]
[1770760980434,3.7576997,82.57,82.533,7.21744219]
[1770760981231,3.7576997,82.58,82.539,5.33859234]
[1770760982729,3.7576997,82.58,82.541,5.3213449]
[1770760984438,3.7576997,82.58,82.544,5.28217885]
[1770760985434,137.44,82.61,82.52,3.7576997]
[1770760985435,7.853e-05,82.599,82.56,3.7576997]
[1770760985633,3.7576997,82.61,82.56,3.7576997]
[1770760985936,8.62857279,82.61,82.56,3.7576997]
[1770760986341,8.62857279,82.61,82.57,10.9057]
[1770760986530,3.7576997,82.58,82.53,3.7576997]
[1770760986730,3.7576997,82.58,82.52,3.7576997]
[1770760987739,3.7576997,82.58,82.548,10.9086]
[1770760990139,3.7576997,82.58,82.539,10.9098]
[1770760990140,3.7576997,82.57,82.539,10.9098]
[1770760990643,3.7576997,82.57,82.52,3.7576997]
[1770760991738,3.7576997,82.57,82.541,10.9095]
[1770760992844,3.7576997,82.59,82.552,10.9082]
[1770761001061,3.7576997,82.59,82.563,10.9067]
[1770761001964,3.7576997,82.6,82.563,10.9067]
[1770761002164,4.79837349,82.599,82.563,10.9067]
[1770761009277,4.80409878,82.569,82.503,22.58387197]
[1770761009467,4.80409878,82.549,82.49,3.75603475]
[1770761010075,3.75603475,82.56,82.51,3.75603475]
[1770761011073,3.75603475,82.56,82.5,3.75603475]
[1770761012672,3.75603475,82.56,82.522,10.912]
[1770761014365,4.83072156,82.578,82.543,10.9093]
[1770761014570,10.9039,82.585,82.543,10.9093]
[1770761016978,4.86397418,82.584,82.543,10.9093]
[1770761017180,3.75603475,82.58,82.543,10.9093]
[1770761017679,4.85091821,82.586,82.471,22.58387197]
[1770761017875,4.85091821,82.569,82.52,3.75603475]
[1770761018069,4.85091821,82.6,82.52,3.75603475]
[1770761018380,3.75603475,82.59,82.55,10.9084]
[1770761018886,4.85091821,82.598,82.558,10.9073]
[1770761019069,3.75603475,82.61,82.56,3.75603475]
[1770761019675,3.75603475,82.62,82.56,3.75603475]
[1770761020277,3.75603475,82.62,82.57,3.75603475]
[1770761020475,4.7317997,82.626,82.57,3.75603475]
[1770761020775,4.7317997,82.626,82.576,10.905]
[1770761023081,3.75603475,82.62,82.576,10.905]
[1770761023574,4.7317997,82.626,82.538,96.68]
[1770761023575,4.7317997,82.626,82.585,10.9037]
[1770761024873,4.67753708,82.639,82.593,10.9027]
[1770761025074,15.01701883,82.678,82.546,21.8179]
[1770761025075,4.67753708,82.652,82.6,3.75603475]
[1770761025278,4.67753708,82.652,82.61,3.75603475]
[1770761025581,3.75603475,82.66,82.611,10.9004]
[1770761025778,8.36875953,82.64,82.59,3.75603475]
[1770761026082,3.75603475,82.65,82.6,3.75603475]
[1770761026283,4.61272478,82.652,82.61,3.75603475]
[1770761027584,3.75603475,82.66,82.6,3.75603475]
[1770761027774,3.75603475,82.66,82.61,3.75603475]
[1770761028778,3.75603475,82.66,82.622,10.8988]
[1770761030273,8.78992272,82.69,82.582,96.66]
[1770761030274,4.53908095,82.689,82.632,10.8975]
[1770761030475,3.75603475,82.67,82.632,10.8975]
[1770761032590,4.53908095,82.675,82.642,10.8963]
[1770761033086,4.53736644,82.688,82.642,10.8963]
[1770761033390,3.75603475,82.65,82.612,96.62]
[1770761033686,3.75603475,82.65,82.6,3.75603475]
[1770761033884,3.75603475,82.65,82.604,10.9012]
[1770761033885,3.75603475,82.64,82.604,10.9012]
[1770761034190,3.75603475,82.63,82.58,3.75603475]
[1770761034394,8.33677205,82.62,82.57,3.75603475]
[1770761034583,3.75603475,82.63,82.57,3.75603475]
[1770761035794,3.75603475,82.64,82.58,3.75603475]
[1770761036288,3.75603475,82.64,82.601,10.9017]
[1770761036489,3.75603475,82.64,82.58,3.75603475]
[1770761038094,3.75603475,82.64,82.607,10.9008]
[1770761040292,4.5353934,82.629,82.58,3.75603475]
[1770761040897,3.75603475,82.61,82.56,3.75603475]
[1770761041094,4.5353934,82.609,82.55,3.75603475]
[1770761041295,4.5353934,82.609,82.56,3.75603475]
[1770761041497,4.5353934,82.609,82.576,10.905]
[1770761041899,3.75603475,82.61,82.56,3.75603475]
[1770761042198,3.75603475,82.61,82.575,10.9051]
[1770761042392,3.75603475,82.61,82.56,3.75603475]
[1770761042595,3.75603475,82.62,82.56,3.75603475]
[1770761043190,3.75603475,82.62,82.591,10.903]
[1770761047992,4.52297116,82.619,82.583,10.904]
[1770761048194,4.52297116,82.619,82.56,3.75603475]
[1770761048393,4.52297116,82.619,82.57,3.75603475]
[1770761049794,4.52297116,82.619,82.59,10.903]
[1770761053104,3.75603475,82.63,82.597,10.9022]
[1770761053307,8.26518291,82.63,82.597,10.9022]
[1770761053607,4.50501274,82.629,82.58,3.75603475]
[1770761053808,3.75603475,82.62,82.57,3.75603475]
[1770761054710,3.75603475,82.62,82.59,10.9031]
[1770761056900,3.75603475,82.61,82.576,10.9049]
[1770761057101,4.51425302,82.609,82.56,3.75603475]
[1770761058004,4.51425302,82.609,82.55,3.75603475]
[1770761058206,36.37,82.641,82.531,21.8218]
[1770761058207,8.26118648,82.59,82.54,3.75603475]
[1770761058401,4.50515173,82.589,82.54,3.75603475]
[1770761059202,8.82038411,82.624,82.54,3.75603475]
[1770761059203,4.50515173,82.605,82.54,3.75603475]
[1770761059408,3.75603475,82.61,82.55,3.75603475]
[1770761059908,4.49458037,82.609,82.55,3.75603475]
[1770761060209,3.75603475,82.6,82.565,10.9064]
[1770761060411,3.75603475,82.6,82.55,3.75603475]
[1770761061711,3.75603475,82.6,82.571,10.9056]
[1770761065808,3.75603475,82.6,82.55,3.75603475]
[1770761065809,4.53292212,82.599,82.561,10.9069]
[1770761066011,4.53292212,82.589,82.561,10.9069]
[1770761067405,8.82038411,82.627,82.524,96.62]
[1770761067406,3.75639667,82.61,82.56,3.75639667]
[1770761067802,4.51573596,82.609,82.56,3.75639667]
[1770761068006,4.51573596,82.609,82.574,10.9052]
[1770761071011,4.51573596,82.609,82.56,3.75639667]
[1770761072504,3.75639667,82.6,82.547,21.8175]
[1770761072713,3.75639667,82.6,82.55,3.75639667]
[1770761073212,4.51573596,82.609,82.55,3.75639667]
[1770761073614,4.51573596,82.609,82.576,10.9049]
[1770761076408,10.8994,82.619,82.547,21.8175]
[1770761076409,4.56654189,82.619,82.582,10.9041]
[1770761078416,3.75639667,82.61,82.582,10.9041]
[1770761080721,3.75639667,82.61,82.588,10.9034]
[1770761081022,4.56654189,82.619,82.588,10.9034]
[1770761083619,4.56654189,82.619,82.596,10.9023]
[1770761084321,4.56654189,82.619,82.587,10.9035]
[1770761084722,4.56654189,82.619,82.563,21.8132]
[1770761085723,4.56654189,82.619,82.592,10.9028]
[1770761089621,8.31298113,82.63,82.599,10.9019]
[1770761091130,8.30964275,82.63,82.593,10.9027]
[1770761098033,3.75305829,82.62,82.593,10.9027]
[1770761098536,3.75305829,82.62,82.599,10.9019]
[1770761099538,8.30964275,82.63,82.599,10.9019]
[1770761101533,4.58594751,82.629,82.599,10.9019]
[1770761101733,11.2740018,82.651,82.559,119.20387197]
[1770761101734,4.57251862,82.645,82.59,3.75305829]
[1770761102041,3.75305829,82.64,82.59,3.75305829]
[1770761102236,3.75305829,82.64,82.615,10.8997]
[1770761102928,3.75305829,82.64,82.615,10.8998]
[1770761102929,8.32557691,82.64,82.615,10.8998]
[1770761103129,8.32557691,82.64,82.569,96.62]
[1770761103130,4.57251862,82.619,82.562,22.58387197]
[1770761103333,3.75305829,82.61,82.56,3.75305829]
[1770761103734,4.57251862,82.619,82.582,10.9041]
[1770761105634,3.75305829,82.61,82.582,10.9041]
[1770761105835,4.57251862,82.619,82.588,10.9034]
[1770761106333,4.57251862,82.619,82.57,3.75305829]
[1770761106334,4.57251862,82.619,82.594,10.9025]
[1770761106534,3.75305829,82.62,82.594,10.9025]
[1770761106940,4.56052942,82.63,82.603,10.9013]
[1770761107138,8.31358771,82.63,82.603,10.9013]
[1770761107338,3.75305829,82.64,82.58,3.75305829]
[1770761107541,3.75305829,82.64,82.574,21.8105]
[1770761107542,15.81791446,82.677,82.61,3.75305829]
[1770761107842,8.29697095,82.67,82.61,3.75305829]
[1770761108041,3.75305829,82.66,82.61,3.75305829]
[1770761108451,3.75305829,82.66,82.625,10.8985]
[1770761108634,3.75305829,82.66,82.61,3.75305829]
[1770761109844,3.75305829,82.66,82.631,10.8977]
[1770761110047,3.75305829,82.68,82.62,3.75305829]
[1770761110234,8.36042576,82.68,82.63,3.75305829]
[1770761111843,8.36042576,82.68,82.642,10.8962]
[1770761112741,4.64394881,82.669,82.62,3.75305829]
[1770761113739,4.62306823,82.659,82.61,3.75305829]
[1770761114739,4.62306823,82.659,82.623,10.8987]
[1770761116145,4.59714304,82.649,82.6,3.75305829]
[1770761116345,4.59714304,82.649,82.585,21.8076]
[1770761116346,4.59714304,82.649,82.59,3.75305829]
[1770761116740,8.85150486,82.679,82.59,3.75305829]
[1770761116741,4.59714304,82.639,82.59,3.75305829]
[1770761116941,3.75305829,82.63,82.58,3.75305829]
[1770761117849,3.75305829,82.63,82.6,10.9018]
[1770761118551,3.75305829,82.63,82.58,3.75305829]
[1770761118552,4.59714304,82.639,82.607,10.9009]
[1770761119742,4.59714304,82.639,82.58,3.75305829]
[1770761119743,3.75305829,82.63,82.596,10.9023]
[1770761119947,4.64687582,82.629,82.596,10.9023]
[1770761122341,3.75305829,82.64,82.596,10.9023]
[1770761122542,8.40264946,82.64,82.603,10.9013]
[1770761123352,4.64959117,82.639,82.603,10.9013]
[1770761126851,4.65304689,82.63,82.589,10.9033]
[1770761127049,4.65304689,82.629,82.589,10.9033]
[1770761128657,4.65304689,82.629,82.591,10.903]
[1770761128853,3.75354998,82.62,82.591,10.903]
[1770761132252,3.75354998,82.62,82.576,96.6]
[1770761132253,4.61723287,82.619,82.576,96.6]
[1770761132458,4.61723287,82.619,82.576,107.505]
[1770761136154,4.61723287,82.619,82.58,3.75354998]
[1770761136558,4.61723287,82.619,82.581,10.9043]
[1770761137557,4.70248664,82.643,82.6,3.75354998]
[1770761138261,4.72507693,82.639,82.59,3.75354998]
[1770761139353,4.72507693,82.619,82.57,3.75354998]
[1770761140064,4.72385371,82.609,82.565,96.6]
[1770761140265,4.72385371,82.621,82.58,3.75354998]
[1770761140565,4.72385371,82.621,82.584,10.9039]
[1770761141459,3.75354998,82.63,82.597,10.9022]
[1770761141660,8.47740369,82.63,82.597,10.9022]
[1770761142467,3.75354998,82.63,82.597,10.9022]
[1770761142665,10.8973,82.635,82.597,10.9022]
[1770761143762,15.55532621,82.642,82.603,10.9013]
[1770761144466,3.75354998,82.64,82.603,10.9013]
[1770761147265,8.42889565,82.64,82.603,10.9013]
[1770761148767,4.67193462,82.639,82.603,10.9013]
[1770761154970,4.65622576,82.637,82.603,10.9013]
[1770761158373,4.65622576,82.637,82.59,3.75354998]
[1770761159172,4.62084279,82.635,82.603,10.9014]
[1770761160870,4.67560784,82.619,82.57,3.75354998]
[1770761161073,3.75354998,82.61,82.56,3.75354998]
[1770761161578,4.67560784,82.619,82.591,10.903]
[1770761161774,8.40093687,82.63,82.58,3.75354998]
[1770761162174,10.8985,82.625,82.59,10.9031]
[1770761162574,8.40093687,82.63,82.59,10.9031]
[1770761165272,4.67503738,82.629,82.595,10.9024]
[1770761165472,3.75354998,82.63,82.595,10.9024]
[1770761166780,10.8977,82.631,82.595,10.9024]
[1770761166981,3.75354998,82.64,82.58,3.75354998]
[1770761166982,3.75354998,82.64,82.603,10.9014]
[1770761167277,3.75354998,82.64,82.58,3.75354998]
[1770761167483,4.66735453,82.637,82.596,10.9023]
[1770761167684,3.75354998,82.63,82.596,10.9023]
[1770761179494,8.39432209,82.63,82.596,10.9023]
[1770761180088,4.6456213,82.629,82.596,10.9023]
[1770761182299,3.94184299,82.619,82.565,26.68533561]
[1770761182504,3.94184299,82.609,82.565,4.10146364]
[1770761182702,3.75354998,82.59,82.565,4.10146364]
[1770761183397,3.94184299,82.6,82.565,4.10146364]
[1770761183704,7.69539297,82.6,82.565,4.10146364]
[1770761184006,3.75354998,82.58,82.536,3.82703587]
[1770761184599,3.99192158,82.589,82.536,3.82703587]
[1770761185805,3.75354998,82.59,82.552,3.82703587]
[1770761187100,3.99192158,82.589,82.552,3.82703587]
[1770761187705,3.99192158,82.589,82.553,10.908]
[1770761191507,3.99192158,82.589,82.552,3.82703587]
[1770761197926,3.99192158,82.579,82.541,3.82703587]
[1770761198110,3.99192158,82.569,82.541,3.82703587]
[1770761202416,3.99192158,82.559,82.522,10.912]
[1770761202617,3.99192158,82.559,82.523,3.82703587]
[1770761203714,3.99192158,82.559,82.527,10.9114]
[1770761210215,3.95902594,82.571,82.53,3.7484294]
[1770761210421,3.95902594,82.569,82.53,3.7484294]
[1770761210617,3.95902594,82.582,82.531,3.7484294]
[1770761210922,3.75692288,82.58,82.531,3.7484294]
[1770761211719,3.75692288,82.58,82.546,3.7484294]
[1770761212122,3.95902594,82.579,82.546,3.7484294]
[1770761216918,3.95902594,82.576,82.546,3.7484294]
[1770761217125,3.95902594,82.569,82.521,3.7484294]
[1770761218630,3.95902594,82.569,82.531,10.9108]
[1770761219029,3.95902594,82.569,82.531,14.6592294]
[1770761219224,3.95902594,82.569,82.532,3.7484294]
[1770761227537,3.95902594,82.569,82.534,3.7484294]
[1770761229235,7.71701888,82.56,82.533,10.9107]
[1770761230833,3.95902594,82.56,82.533,10.9107]
[1770761235334,3.95902594,82.56,82.533,14.6591294]
[1770761236942,3.95902594,82.56,82.534,3.7484294]
[1770761238435,8.80955875,82.588,82.541,3.7484294]
[1770761238638,3.95902594,82.589,82.541,3.7484294]
[1770761239836,3.95902594,82.589,82.55,3.7484294]
[1770761240538,3.95902594,82.589,82.552,4.08120657]
[1770761241646,3.95902594,82.589,82.555,4.08120657]
[1770761242241,3.95902594,82.589,82.556,14.98880657]
[1770761244242,3.95902594,82.589,82.557,4.0179009]
[1770761246238,3.9656427,82.597,82.564,4.0179009]
[1770761246446,3.75799294,82.6,82.564,4.0179009]
[1770761247947,3.75799294,82.6,82.568,4.0179009]
[1770761250948,3.75553299,82.6,82.568,4.0179009]
[1770761253649,3.9656427,82.599,82.568,4.0179009]
[1770761253856,3.9656427,82.58,82.541,4.0179009]
[1770761254148,3.9656427,82.59,82.541,4.0179009]
[1770761254357,3.9656427,82.59,82.556,4.0179009]
[1770761254855,3.9656427,82.569,82.531,4.0179009]
[1770761255057,3.75553299,82.56,82.531,4.0179009]
[1770761255750,3.75553299,82.56,82.532,10.9108]
[1770761256450,3.75553299,82.56,82.511,4.0179009]
[1770761256451,3.9656427,82.559,82.511,4.0179009]
[1770761256657,3.75553299,82.54,82.511,4.0179009]
[1770761258256,3.9656427,82.549,82.511,4.0179009]
[1770761258752,3.9656427,82.549,82.515,10.9129]
[1770761258957,8.80955875,82.579,82.516,4.0179009]
[1770761258958,3.75553299,82.57,82.516,4.0179009]
[1770761259348,3.9656427,82.569,82.521,4.0179009]
[1770761259758,3.9656427,82.569,82.529,4.0179009]
[1770761260552,3.75553299,82.56,82.529,4.0179009]
[1770761260752,3.75553299,82.56,82.53,10.9109]
[1770761262855,3.75553299,82.55,82.518,4.0179009]
[1770761263056,7.72117569,82.55,82.518,4.0179009]
[1770761263949,3.9656427,82.549,82.506,4.0179009]
[1770761264150,3.75553299,82.54,82.506,4.0179009]
[1770761264647,3.75553299,82.55,82.525,10.9116]